Cogmind - Beta 16 @@@ ROGUE MODE // 2025.12.04 @ 23:01:13 Player: h76 Result: Destroyed by as-55613 with Assembled Heavy Rifle Performance ------------- Evolutions (0) 0 Regions Visited (2) 400 Robots Destroyed (30) 150 Value Destroyed (476) 476 Prototype IDs (0) 0 Alien Tech Used (0) 0 Bonus (-92) -92 TOTAL SCORE: 934 Bonus ------- Follower Combat Kills 39 Friendly Fire -131 Cogmind --------- Core Integrity 0/250 Matter 267/300 Energy 310/310 System Corruption 4% Temperature Cool (82) Movement Rolling (125) Ox3 Location -10/Mines Parts ------- > --- POWER (1) -------- Fission Core > --- PROPULSION (2) --- Wheel > --- UTILITY (2) ------ Large Storage Unit > --- WEAPON (2) ------- EM Shotgun Mining Claw > --- INVENTORY (15) --- Ion Engine Flight Unit Flight Unit Flight Unit Flight Unit Large Storage Unit Terrain Scanner Seismic Detector Propulsion Shielding Medium Armor Plating EM Shotgun Improved Light Cannon Improved Light Cannon Grenade Launcher Peak State ------------ > --- POWER ------------ Fission Core > --- PROPULSION ------- Light Treads Wheel > --- UTILITY ---------- Large Storage Unit Medium Armor Plating > --- WEAPON ----------- EM Shotgun EM Shotgun > --- INVENTORY -------- Ion Engine Flight Unit Flight Unit Flight Unit Flight Unit Large Storage Unit Terrain Scanner Seismic Detector Propulsion Shielding Medium Armor Plating Improved Light Cannon Improved Light Cannon Grenade Launcher Mining Claw [Rating: 15] Favorites ----------- Power Ion Engine Engine Ion Engine Power Core Fission Core Propulsion Wheel Treads Light Treads Wheel Wheel Utility Large Storage Unit Device Structural Scanner Storage Large Storage Unit Protection Medium Armor Plating Weapon Improved Light Cannon Energy Gun EM Pulse Gun Ballistic Gun Light Assault Rifle Ballistic Cannon Improved Light Cannon Launcher Grenade Launcher Special Weapon Mining Laser Slashing Weapon Mining Claw Build | -11 -10 -10 ------- Run | Yrd Mat Min Slots Evolved . | . . . Power . | . . . Propulsion . | . . . Utility . | . . . Weapon . | . . . Parts Attached 28 | 9 15 4 Power 4 | 2 1 1 Engine 3 | 2 1 . Core 1 | . . 1 Reactor . | . . . Propulsion 7 | 3 3 1 Treads 1 | . 1 . Leg . | . . . Wheel 6 | 3 2 1 Hover . | . . . Flight . | . . . Utility 5 | 2 2 1 Device 3 | 2 1 . Storage 1 | . 1 . Processor . | . . . Hackware . | . . . Protection 1 | . . 1 Artifact . | . . . Weapon 12 | 2 9 1 Energy Gun 6 | 1 5 . Energy Cannon . | . . . Ballistic Gun 1 | 1 . . Ballistic Cannon 2 | . 2 . Launcher 1 | . . 1 Special Weapon 1 | . 1 . Impact Weapon . | . . . Slashing Weapon 1 | . 1 . Piercing Weapon . | . . . Special Melee Weapon . | . . . Unidentified Prototypes . | . . . Parts Lost 7 | . 3 4 Power . | . . . Propulsion 1 | . . 1 Utility 2 | . . 2 Weapon 4 | . 3 1 Highest Loss Streak 3 | . 3 2 To Critical Strikes . | . . . Average Backups 10 | 1 10 14 Power . | . . . Propulsion 2 | . 2 4 Utility 4 | . 5 5 Weapon 2 | . 2 4 Tool/Special . | . . . Unused Backups 11 | . 2 9 Power . | . . . Propulsion 4 | . . 4 Utility 5 | . 1 4 Weapon 2 | . 1 1 Tool/Special . | . . . Average Slot Usage (%) 96 | . 98 93 Engine 12 | . 13 6 Core 1 | . . 7 Treads 6 | . 4 14 Wheel 21 | . 23 14 Device 12 | . 14 4 Storage 13 | . 13 14 Protection 2 | . . 9 Energy Gun 12 | . 14 5 Ballistic Cannon 10 | . 10 9 Launcher 1 | . . 5 Peak Build Rating 15 | 7 11 15 Average Rating 9 | 3 8 12 On Entrance 6 | . 7 11 Avg Prop Armor Cover (%) 6 | . 4 8 Naked Turns . | . . . Heaviest Build 43 | 8 34 43 Greatest Support 26 | 20 26 20 Greatest Overweight (x) 11 | . 11 4 Average Overweight (x) 1 | . . 3 Largest Inventory Capacity 15 | 5 15 15 Average Capacity 14 | 5 14 15 Most Carried 15 | 4 15 15 Average Carried 10 | 1 10 14 Final Capacity 15 | 5 15 15 Final Carried 15 | 2 15 14 Class Distribution -------------------- 92% | Mutant 7% | Scavenger-Mutant Dominant Class ---------------- Mutant | -10/Materials Mutant | -10/Mines Resources | -11 -10 -10 ----------- Run | Yrd Mat Min Matter Collected 703 | 293 275 135 Remotely . | . . . Salvage Created 820 | 110 550 160 Parts 43 | 10 31 2 Haulers Intercepted 1 | . 1 . Recyclers Shooed . | . . . Parts Field Recycled . | . . . Retrieved Matter . | . . . Parts Self-Destructed . | . . . Prevented . | . . . Parts Restored . | . . . Kills | -11 -10 -10 ------- Run | Yrd Mat Min Combat Hostiles Destroyed 17 | 1 13 3 Melee 2 | . . 2 Guns 6 | . 5 1 Cannons 3 | . 3 . AOE 5 | 1 4 . Classes Destroyed 9 | 3 4 2 Worker 3 | 1 2 . Builder 3 | . 3 . Tunneler 3 | 2 1 . Hauler 1 | . 1 . Recycler 2 | . . 2 Watcher 3 | . 3 . Swarmer 6 | . 6 . Grunt 8 | 1 7 . Assembled 3 | . . 3 Thug 1 | . . 1 Best Kill Streak 6 | 3 6 3 Combat Bots Only 3 | 1 3 3 Max Kills in Single Turn 3 | 3 2 3 Gunslinging . | . . . Exploded 2 | 1 2 . Melee 1 | . . 1 Uniques/NPCs Destroyed . | . . . Combat | -11 -10 -10 -------- Run | Yrd Mat Min Hostile Shots Fired 94 | 6 48 40 Missed 20 | 3 11 6 Hits 74 | 3 37 34 Melee 2 | . . 2 Projectile 72 | 3 37 32 AOE 11 | . . 11 Critical Strikes 1 | . . 1 Part Disruptions 1 | . . 1 Damage Taken 1232 | 62 442 728 Core 261 | 25 93 143 Absorbed by Shields . | . . . Regen/Repaired (Parts) 30 | . 30 . Core Remaining (%) 90 | 90 . . Volleys Fired 56 | 5 39 12 Largest 2 | 2 2 2 Hottest 100 | 60 100 90 Shots Fired 100 | 10 74 16 Gun 71 | 10 52 9 Cannon 23 | . 20 3 Launcher 4 | . . 4 Special 2 | . 2 . Kinetic 28 | 5 20 3 Thermal 2 | . 2 . Explosive 4 | . . 4 Electromagnetic 66 | 5 52 9 Robot Hit Streak 9 | 4 9 5 Robot Miss Streak 4 | 2 4 4 Penetration Max . | . . . Secondary Targets 2 | . 2 . Max Gunslinging Chain 1 | . 1 . Shots Hit Robots 57 | 6 38 13 Core Hits 42 | 7 26 9 Critical Kills . | . . . Critical Parts Destroyed . | . . . Critical Strikes 1 | . 1 . Blast 1 | . 1 . Melee Attacks 7 | . 3 4 Impact . | . . . Slashing 7 | . 3 4 Piercing . | . . . Sneak Attacks . | . . . Combat Hostiles . | . . . Follow-up Attacks . | . . . Damage Inflicted 1734 | 145 1242 347 Guns 634 | 57 500 77 Cannons 236 | . 215 21 Explosions 778 | 88 526 164 Melee 85 | . . 85 Ramming 1 | . 1 . Kinetic 256 | 20 215 21 Thermal 421 | 88 333 . Explosive 357 | . 193 164 Electromagnetic 614 | 37 500 77 Impact . | . . . Slashing 85 | . . 85 Piercing . | . . . Highest Corruption 4 | . 4 4 Average Corruption 3 | . 3 4 Corruption Purged . | . . . Corruption Blocked . | . . . Effects 18 | . 9 9 Message Errors 2 | . 1 1 Matter Fused 7 | . 3 4 Heat Flow Errors 1 | . . 1 Energy Discharges 2 | . 2 . Data Loss (minor) 3 | . 2 1 Data Loss (major) 2 | . 1 1 Alerts 1 | . . 1 Overload Shots . | . . . Overflow Damage 41 | . 41 . Projectiles . | . . . Explosions 41 | . 41 . Melee . | . . . Knockbacks . | . . . Impact . | . . . Kinetic . | . . . Secondary . | . . . Self-Inflicted Damage 76 | 28 48 . Shots 3 | 1 2 . Rammed 1 | . 1 . Targets Rammed 1 | . 1 . Kicked . | . . . Crushed . | . . . Highest Temperature 261 | 32 261 254 Average Temperature 80 | 18 77 112 Received Heat Transfer 303 | 18 165 120 Effects 1 | . 1 . Energy Bleed 1 | . 1 . Siege Activations . | . . . Martial Activations . | . . . Shielding Activations . | . . . Robots Disrupted . | . . . Combat Hostiles . | . . . Robots Corrupted 1 | . 1 . Combat Hostiles 1 | . 1 . Parts Fried 3 | . 3 . Impact Corruptions . | . . . Robots Melted . | . . . Combat Hostiles . | . . . Parts Melted . | . . . Heat Transferred 600 | 200 400 . Parts Sabotaged . | . . . Parts Stolen . | . . . Parts Stripped . | . . . Power Chain Reactions 7 | 1 6 . Alert | -11 -10 -10 ------- Run | Yrd Mat Min Maximum Alert Level . | . . . Low Security (%) 100 | 100 100 100 Level 1 . | . . . Level 2 . | . . . Level 3 . | . . . Level 4 . | . . . Level 5 . | . . . High Security . | . . . Max Security . | . . . Peak Influence 187 | 20 187 40 Initial 40 | . 6 40 Average 65 | 4 86 8 Influence Increases 588 | 35 503 50 Destroy 0b10 Robot/C 300 | 20 260 20 Destroy 0b10 Robot/NC 75 | 15 50 10 Destroy Leader 78 | . 68 10 Allied During Kill 2 | . . 2 Successful Hack 24 | . 24 . Disable Machine 45 | . 45 . Destroy Structure 49 | . 41 8 Lose Combat Pursuer 15 | . 15 . Influence Decreases 588 | 25 409 154 Entered New Map 68 | . 4 64 Time Decay 486 | 25 375 86 Lost Part 34 | . 30 4 Squads Dispatched 5 | . 5 . Investigation 4 | . 4 . Extermination . | . . . Reinforcement 1 | . 1 . Assault . | . . . Garrison . | . . . Intercept . | . . . Searches Triggered . | . . . Construction Impeded . | . . . Haulers Reinforced . | . . . Active Scanning Responses . | . . . Cargo Convoy Interrupts . | . . . Stealth | -11 -10 -10 --------- Run | Yrd Mat Min Distress Signals . | . . . Communications Jammed . | . . . Distress Signals . | . . . Times Spotted 25 | 1 18 6 Peak Tracking Total 4 | 1 4 3 Tactical Retreats 1 | . 1 . Traps | -11 -10 -10 ------- Run | Yrd Mat Min Traps Triggered 5 | . 5 . Indirectly . | . . . Trap Hack Attempts . | . . . Triggered . | . . . Disarmed . | . . . Reprogrammed . | . . . Reused . | . . . Traps Extracted . | . . . Installed . | . . . Triggered . | . . . Machines | -11 -10 -10 ---------- Run | Yrd Mat Min Machines Disabled 3 | . 3 . Max in Single Turn 1 | . 1 . Machines Repaired . | . . . Machines Dismantled . | . . . Machines Sabotaged . | . . . Overloaded Fab Kills . | . . . Hacking | -11 -10 -10 --------- Run | Yrd Mat Min Machines Accessed 9 | . 9 . Terminals 7 | . 7 . Fabricators . | . . . Repair Stations 1 | . 1 . Recycling Units 1 | . 1 . Scanalyzers . | . . . Garrison Access . | . . . Total Hacks 32 | . 32 . Successful 20 | . 20 . Failed 12 | . 12 . Catastrophic . | . . . Database Lockouts . | . . . Manual . | . . . Terminals 25 | . 25 . Fabricators . | . . . Repair Stations 3 | . 3 . Recycling Units 4 | . 4 . Scanalyzers . | . . . Garrison Access . | . . . Terminal Hacks 14 | . 14 . Record 2 | . 2 . Emergency Access Points 2 | . 2 . Alert Level 3 | . 3 . Locate Traps 1 | . 1 . Dispatch Records 1 | . 1 . Transport Status 1 | . 1 . Investigation Status 1 | . 1 . Hauler Manifests 1 | . 1 . Zone Layout 2 | . 2 . Fabricator Hacks . | . . . Repair Station Hacks 2 | . 2 . Scan Component 1 | . 1 . Repair 1 | . 1 . Recycling Unit Hacks 4 | . 4 . Recycle Component 1 | . 1 . Process 1 | . 1 . Report Inventory 1 | . 1 . Retrieve Components 1 | . 1 . Scanalyzer . | . . . Garrison Access Hacks . | . . . Unauthorized Hacks . | . . . Terminals . | . . . Fabricators . | . . . Repair Stations . | . . . Recycling Units . | . . . Scanalyzers . | . . . Garrison Access . | . . . Data Cores Recovered . | . . . Used . | . . . Hacking Detections 9 | . 9 . Full Trace Events 7 | . 7 . Feedback Events . | . . . Feedback Blocked . | . . . Robot Schematics Acquired . | . . . Robots Built . | . . . Authchips . | . . . Time . | . . . Total Robot Build Rating . | . . . Part Schematics Acquired . | . . . Parts Built . | . . . Authchips . | . . . Time . | . . . Total Part Build Rating . | . . . Part Studies Acquired . | . . . Parts Repaired 1 | . 1 . Time 32 | . 32 . Parts Recycled 1 | . 1 . Recycled Matter 40 | . 40 . Retrieved Matter . | . . . Retrieved Components . | . . . Parts Scanalyzed . | . . . Part Schematics Acquired . | . . . Parts Damaged . | . . . Bothacking | -11 -10 -10 ------------ Run | Yrd Mat Min Used RIF Installer . | . . . Robots Hacked . | . . . Non-combat . | . . . Combat . | . . . Robot Hacks Applied . | . . . Relay Couplers Released . | . . . Fabnet Peak Effective % . | . . . Robots Rewired . | . . . Allies Hacked . | . . . Hacks Repelled . | . . . Allies | -11 -10 -10 -------- Run | Yrd Mat Min Total Allies 2 | . . 2 Largest Group 2 | . . 2 Highest-Rated Group 44 | . . 44 Highest-Rated Ally 31 | . . 31 Total Orders . | . . . Ally Attacks 11 | . . 11 Total Damage 128 | . . 128 Kills 1 | . . 1 Allies Corrupted . | . . . Allies Melted . | . . . Intel | -11 -10 -10 ------- Run | Yrd Mat Min Active Infowar (turns) 1610 | 8 1469 133 Structural 1067 | . 934 133 Seismic 543 | 8 535 . Robot Analysis Total . | . . . Derelict Logs Recovered 1 | . . 1 Drone Launches . | . . . Drone Recoveries . | . . . Exploration | -11 -10 -10 ------------- Run | Yrd Mat Min Turns Passed 1998 | 103 1469 426 Spaces Moved 1367 | 93 1000 274 Core 36 | 30 6 . Treads 188 | . 167 21 Legs . | . . . Wheels 1143 | 63 827 253 Hover . | . . . Flight . | . . . Fastest Speed 50 | 50 80 125 Average Speed 121 | 70 122 136 Slowest Speed 600 | 80 600 240 Overloaded Moves . | . . . Propulsion Burnouts . | . . . Robots Hopped . | . . . Potential Cave-ins . | . . . Cave-ins Triggered . | . . . Exploration Rate (%) 50 | 5 96 50 Regions Visited 2 Branch Regions 1 Pre-discovered Areas . | . . . Known Exits Taken . | . . . Unknown Exits Taken 2 | 1 1 . Scrap Searched 1 | . . 1 Spaces Dug 3 | . 3 . Terrain Destroyed 76 | . 55 21 Melee 3 | . 3 . Projectile 3 | . 3 . AOE 70 | . 49 21 Terrain Rammed . | . . . Walls Destroyed . | . . . Machines Disabled . | . . . Actions | -11 -10 -10 --------- Run | Yrd Mat Min Total 1582 | 121 1161 300 Wait 61 | 2 59 . Move 1365 | 92 999 274 Hop . | . . . Pick Up 41 | 11 29 1 Fast Attach 4 | . 4 . Attach 20 | 8 10 2 Detach 1 | . 1 . Swap 14 | 1 7 6 Drop 12 | 2 9 1 Fire 56 | 5 39 12 Melee 7 | . 3 4 Ram 1 | . 1 . Kick . | . . . Crush . | . . . Escape Stasis . | . . . Rewire . | . . . Trap . | . . . Miscellaneous . | . . . Route ------- -11/Scrapyard -10/Materials (discovered 5 exits: [*Mat x2] / [*Min x2] / [*Sub]) -10/Mines (discovered 1 exit: [*Mat]) History --------- Turn | Location | Event 2 | -11/Scrapyard | Met Revision 17 63 | -11/Scrapyard | Discovered new exit (range 8) 104 | -11/Scrapyard | Entered Materials 133 | -10/Materials | Discovered new exit (range 12) 279 | -10/Materials | Discovered new exit (range 13) 426 | -10/Materials | Lost 3 parts (3w) 461 | -10/Materials | Build established: Mutant 467 | -10/Materials | Discovered new exit (range 10) 779 | -10/Materials | Discovered new exit (range 12) 862 | -10/Materials | Discovered new exit (range 12) 1191 | -10/Materials | Repaired EM Shotgun 1573 | -10/Materials | Entered Mines 1585 | -10/Mines | Discovered new exit (range 8) 1678 | -10/Mines | Assembled infested the area 1683 | -10/Mines | Assisted by a Guerilla fighting off Assembled 1709 | -10/Mines | Core integrity fell below 50% 1986 | -10/Mines | Core integrity fell below 20% 1999 | -10/Mines | Destroyed by as-55613 with Assembled Heavy Rifle Last Messages --------------- The unstable cave ceiling collapses. System corrupted: Matter fused (-10). Acquired 74 matter. The unstable cave ceiling collapses. U-05 Engineer lays Concrete. U-05 Engineer builds a Wall. U-05 Engineer lays Concrete. U-05 Engineer builds a Wall. Acquired 10 matter. K-01 Serf cleans the Pressure Siphon. K-01 Serf collects debris. as-59070 destroyed. as-56096 destroyed. Acquired 17 matter. as-65363 destroyed. System corrupted: Matter fused (-8). Lgt. Treads destroyed. Med. Armor Plating destroyed. K-01 Serf collects debris. [Achievement: First Step to Greatness] Map ----- +----------------------------------------------------+ | ??## ## ###??????????????????????????### | | ??# # #????????????????????????????### | | ???# ##????????????????????????????## | | ???## #????????????????????????????## # | | ????## """ #????????????????????????????## #### | | ?????# """ ##???????????????????????????### ##### | | ?????# """ ###?????????????????????????### ###?? | | ?????# """ ##????????????????????????## ##??? | | ?????# #????????????????????????## ##??? | | ?????## #????????????????????????# ###??? | | ??????##### #####??????????????????## ###??? | | ??????????## #??????????????????## ##???? | | ??????????## #### ###????????????????### ###???? | | ?????????## ##?# #????????????????########???? | | ????????## #?## #?????????????????#####?????? | | ????????# #??# #???????????????????????????? | | ????????# ##??# #???????????????????????????? | | ????????## ##???# #########???????????????????? | | ?????????#####????# ##??????????????????? | | ???????????###????# #??????????????????? | | ??????????## #???# #??????????????????? | | ??????????# #?## ##??????????????????? | | ?????????## ## ## ##???????????????????? | | ?????????# ##?# ##????????????????????? | | ????????## ##### ##????????????????????? | | ???????## k @% #????????????????????? | | ???????# %a #????????????????????? | | ???? """ ######## #????????????????????? | | ???? ? ? """ ##??????? a#????????????????????? | | ???????? """ ????????? *% ???????????????????? | | ??????? #????????? ! ??????????????????? | | ?????? #####??????????? ????????????????? | | ????? ????????????????? =???????????????? | | ???? ?????????????????? ?%??????????????? | | ???? ??????????????????? ?? ?????????????? | | ????? ?????????????????????? ???????????????? | | ???????????????????????????? #??????????????? | | ????????????????????????????## ###??????????????? | | ??????????????????????????????###????????????????? | | ?????????????????????????????????????????????????? | | ?????????????????????????????????????????????????? | | ?????????????????????????????????????????????????? | | ?????????????????????????????????????????????????? | | ?????????????????????????????????????????????????? | | ?????????????????????????????????????????????????? | | ?????????????????????????????????????????????????? | | ?????????????????????????????????????????????????? | | ?????????????????????????????????????????????????? | | ?????????????????????????????????????????????????? | | ?????????????????????????????????????????????????? | +----------------------------------------------------+ Best States ------------- Heat Dissipation 35 Energy Generation 18 Energy Capacity 310 Matter Stores 300 Matter Capacity 300 Sight Range 16 Terrain Scan Density 10 Armor Coverage 225 Evasion (%) 50 Recoil Reduction 1 Item Schematics ----------------- None Robot Schematics ------------------ None Fabricated ------------ Nothing Repaired ---------- EM Shotgun | 40% | -10/Materials Studied --------- None Alien Tech Used ----------------- None Achievements -------------- DATA ERROR: Steam Global Achievement% First Step to Greatness For Emergencies Only Loot Pinata Party Time Shopping List Challenges ------------ None Game ------ Seed AntisysFlakHoverbase Manual? 0 Play Time 00:36:05 Cumulative 0.5 hours Start 2025.12.04 @ 22:25:37 End 2025.12.04 @ 23:01:13 Sessions 1 Manual Loads 0 Difficulty Rogue Special Mode None Game No. 2 Rogue 2 Adventurer 0 Explorer 0 Win Type - Total 0 Types 0/0/0/0/0/0/0/0/0/0 Lore% 0 Gallery% 3 Achievement% 4 Wizard Run 0 Options --------- Layout 1 ASCII 0 Keyboard 0 Movement Mouse Keybinds 0 Fullscreen 1 Font 16/SmallcapsGlow Map View 25x17 Zoom Use 99% Tactical HUD 0 Map Filters NONE Filters NONE Steam 1 RUN: c6d6d1f7-3804-4683-8876-721afd569db7